fUSD/lending_fUSD_20240814
["ID","MTS","AMOUNT","RATE_DAILY","PERIOD"]
[334957157,1723671086677,-479.842609,0.00021918,2]
[334957158,1723671086687,-479.842609,0.00021918,2]
[334957159,1723671086696,-479.842609,0.00021918,2]
[334957160,1723671086705,-479.842609,0.00021918,2]
[334957161,1723671086714,-479.842609,0.00021918,2]
[334957162,1723671086723,-479.842608,0.00021918,2]
[334957163,1723671086732,-150.0,0.00021918,2]
[334957164,1723671086742,-2248.15,0.00021918,2]
[334957165,1723671086752,-500.0,0.00021918,2]
[334957166,1723671086762,-500.0,0.00021918,2]
[334957167,1723671086771,-500.0,0.00021918,2]
[334957168,1723671086780,-500.0,0.00021918,2]
[334957169,1723671086790,-500.0,0.00021918,2]
[334957170,1723671086800,-500.0,0.00021918,2]
[334957171,1723671086810,-200.0,0.0002196,2]
[334957172,1723671086819,-500.0,0.00021976,2]
[334957173,1723671086829,-2000.0,0.00022,2]
[334957174,1723671086839,-2000.0,0.00022,2]
[334957175,1723671086851,-764.0,0.00022053,2]
[334957176,1723671086860,-500.0,0.00022059,2]
[334957177,1723671086869,-500.0,0.00022076,2]
[334957178,1723671086878,-500.0,0.00022086,2]
[334957179,1723671086889,-996.3,0.000221,2]
[334957180,1723671086898,-227.20595794,0.0002211,2]
[334957181,1723671086909,-2000.0,0.0002219,2]
[334957182,1723671086919,-3000.0,0.000222,2]
[334957183,1723671086928,-2083.78,0.000222,14]
[334957184,1723671086939,-215.66,0.00022207,2]
[334957185,1723671086949,-500.0,0.00022292,2]
[334957186,1723671086958,-2000.0,0.00022351,2]
[334957187,1723671086968,-500.0,0.00022401,2]
[334957188,1723671086977,-500.0,0.00022411,2]
[334957189,1723671086989,-500.0,0.00022461,2]
[334957190,1723671086998,-2053.09,0.00022465,2]
[334957191,1723671087007,-2053.09,0.00022465,2]
[334957192,1723671087016,-2053.09,0.00022465,2]
[334957193,1723671087025,-2053.09,0.00022465,2]
[334957194,1723671087034,-2053.09,0.00022465,2]
[334957195,1723671087134,-2053.09,0.00022465,2]
[334957196,1723671087145,-2053.09,0.00022465,2]
[334957197,1723671087154,-2053.09,0.00022465,2]
[334957198,1723671087164,-2053.09,0.00022465,2]
[334957199,1723671087174,-2053.09,0.00022465,2]
[334957200,1723671087183,-2053.09,0.00022465,2]
[334957201,1723671087193,-2053.09,0.00022465,2]
[334957202,1723671087202,-2053.09,0.00022465,2]
[334957203,1723671087211,-2053.09,0.00022465,2]
[334957204,1723671087221,-2053.09,0.00022465,2]
[334957205,1723671087231,-2053.09,0.00022465,2]
[334957206,1723671087244,-2053.09,0.00022465,2]
[334957207,1723671087253,-2053.09,0.00022465,2]
[334957208,1723671087263,-2053.09,0.00022465,2]
[334957209,1723671087272,-2053.09,0.00022465,2]
[334957210,1723671087282,-2053.09,0.00022465,2]
[334957211,1723671087291,-2053.09,0.00022465,2]
[334957212,1723671087300,-2053.09,0.00022465,2]
[334957213,1723671087310,-2053.2282552,0.00022465,2]
[334957214,1723671087319,-1000.0,0.00022466,2]
[334957215,1723671087328,-2500.0,0.0002247,2]
[334957216,1723671087338,-478.2193538,0.00022471,2]
[334957217,1723671087348,-150.0,0.00022495,2]
[334957218,1723671087358,-1027.0,0.000225,2]
[334957219,1723671087370,-500.0,0.00022513,2]
[334957220,1723671087380,-500.0,0.00022575,2]
[334957221,1723671087390,-2500.0,0.00022603,2]
[334957222,1723671087400,-155.0,0.0002261,8]
[334957223,1723671087409,-500.0,0.00022646,2]
[334957224,1723671087419,-2000.0,0.00022739,2]
[334957225,1723671087429,-500.0,0.00022765,2]
[334957226,1723671087439,-2500.0,0.00022796,2]
[334957227,1723671087448,-2000.0,0.00022824,2]
[334957228,1723671087458,-500.0,0.00022871,2]
[334957229,1723671087468,-500.0,0.0002295,2]
[334957230,1723671087477,-500.0,0.00022994,2]
[334957231,1723671087487,-22886.37603296,0.00023,2]
[334957232,1723671087496,-300.0,0.00023,2]
[334957233,1723671087506,-2000.0,0.00023,2]
[334957234,1723671087516,-173.0,0.00023,2]
[334957235,1723671087528,-2000.0,0.00023,2]
[334957236,1723671087538,-310.16,0.00023,2]
[334957237,1723671087548,-1131.0,0.00023,2]
[334957238,1723671087559,-2000.0,0.0002303,2]
[334957239,1723671087568,-500.0,0.00023062,2]
[334957240,1723671087578,-150.0,0.00023071,2]
[334957241,1723671087588,-1000.0,0.00023075,2]
[334957242,1723671087598,-519.40081095,0.00023078,2]
[334957243,1723671087608,-500.0,0.00023091,2]
[334957244,1723671087618,-151.0,0.00023096,2]
[334957245,1723671087627,-7900.8067279,0.00023102,2]
[334957246,1723671087637,-1000.0,0.00023167,2]
[334957247,1723671087646,-500.0,0.00023172,2]
[334957248,1723671087656,-1000.0,0.00023201,2]
[334957249,1723671087666,-180.0,0.00023205,2]
[334957250,1723671087675,-1000.0,0.00023212,2]
[334957251,1723671087686,-500.0,0.00023217,2]
[334957252,1723671087695,-500.0,0.00023229,2]
[334957253,1723671087704,-500.0,0.00023248,2]
[334957254,1723671087713,-500.0,0.00023252,2]
[334957255,1723671087722,-500.0,0.00023252,2]
[334957256,1723671087732,-500.0,0.00023256,2]
[334957257,1723671087743,-500.0,0.00023318,2]
[334957258,1723671087753,-2500.0,0.00023335,2]
[334957259,1723671087763,-312.17786625,0.00023344,2]
[334957260,1723671087773,-500.0,0.00023367,2]
[334957261,1723671087782,-500.0,0.00023397,2]
[334957262,1723671087792,-200.0,0.0002343,2]
[334957263,1723671087801,-152.16,0.00023435,2]
[334957264,1723671087811,-500.0,0.00023436,2]
[334957265,1723671087820,-500.0,0.00023496,2]
[334957266,1723671087829,-186.0,0.000235,6]
[334957267,1723671087843,-1000.0,0.00023547,2]
[334957268,1723671087854,-1000.0,0.00023555,2]
[334957269,1723671087863,-510.36045038,0.00023562,2]
[334957270,1723671087872,-3709.41672408,0.00023566,2]
[334957271,1723671087882,-500.0,0.00023594,2]
[334957272,1723671087892,-500.0,0.00023599,2]
[334957273,1723671087901,-500.0,0.00023617,2]
[334957274,1723671087911,-150.0,0.00023648,2]
[334957275,1723671087922,-500.0,0.00023659,2]
[334957276,1723671087931,-500.0,0.00023721,2]
[334957277,1723671087941,-2000.0,0.00023748,2]
[334957278,1723671087951,-500.0,0.00023748,2]
[334957279,1723671087960,-500.0,0.00023748,2]
[334957280,1723671087969,-1000.0,0.00023761,2]
[334957281,1723671087979,-2000.0,0.00023764,2]
[334957282,1723671087989,-205.59266856,0.00023795,2]
[334957283,1723671087998,-996.3,0.00023875,2]
[334957284,1723671088009,-500.0,0.00023898,2]
[334957285,1723671088021,-500.0,0.00023899,2]
[334957286,1723671088030,-7789.0882352,0.000239,3]
[334957287,1723671088041,-155.0,0.000239,10]
[334957288,1723671088050,-900.0,0.000239,8]
[334957289,1723671088059,-1000.0,0.0002392,2]
[334957290,1723671088069,-500.7,0.00023946,2]
[334957291,1723671088215,-500.0,0.00023955,2]
[334957292,1723671088225,-500.0,0.00023992,2]
[334957293,1723671088236,-341.49594942,0.00024,2]
[334957294,1723671088246,-211.1196886,0.00024,2]
[334957295,1723671088255,-23260.92080402,0.00024,3]
[334957296,1723671088265,-556.199999,0.00024,2]
[334957297,1723671088274,-500.12345578,0.00024,5]
[334957298,1723671088284,-556.2,0.00024,2]
[334957299,1723671088294,-2260.7961681,0.00024,2]
[334957300,1723671088304,-5000.0,0.00024014,2]
[334957301,1723671088313,-5000.0,0.00024014,2]
[334957302,1723671088323,-5000.0,0.00024015,2]
[334957303,1723671088332,-5000.0,0.00024018,2]
[334957304,1723671088342,-500.0,0.00024062,2]
[334957305,1723671088352,-5000.0,0.00024087,2]
[334957306,1723671088362,-3000.0,0.000241,2]
[334957307,1723671088371,-5000.0,0.00024106,2]
[334957308,1723671088381,-2500.0,0.00024107,2]
[334957309,1723671088391,-500.0,0.00024124,2]
[334957310,1723671088400,-300.73278874,0.00024129,2]
[334957311,1723671088638,-514.74031448,0.00024129,2]
[334957312,1723671088668,-237.88,0.00012,2]
[334957313,1723671088678,-68.54367944,0.00024129,2]
[334957314,1723671088690,-815.0,0.00024129,2]
[334957315,1723671088701,-655.43194,0.00024129,2]
[334957316,1723671088881,-237.88,0.00012,2]
[334957317,1723671088891,-237.88,0.00012,2]
[334957318,1723671088901,-237.88,0.00012,2]
[334957319,1723671088911,-237.88,0.00012,2]
[334957320,1723671088921,-218.91005949,0.00013052,2]
[334957321,1723671088931,-166.84869086,0.00013086,2]
[334957322,1723671088940,-62.5801153,0.00013086,2]
[334957323,1723671088968,-380.32741541,0.00013052,2]
[334957324,1723671088978,-92.93495329,0.00013086,2]
[334957325,1723671088988,-328.2488375,0.00013292,2]
[334957326,1723671088998,-500.0,0.00015067,2]
[334957327,1723671089008,-500.0,0.00015341,2]
[334957328,1723671089025,-500.0,0.00015615,2]
[334957329,1723671089035,-500.0,0.00015889,2]
[334957330,1723671089045,-500.0,0.00016163,2]
[334957331,1723671089054,-2645.55127734,0.00024129,2]
[334957332,1723671089063,-1000.0,0.00024132,2]
[334957333,1723671089072,-5000.0,0.00024137,2]
[334957334,1723671089082,-310.16,0.0002415,2]
[334957335,1723671089091,-5000.0,0.00024156,2]
[334957336,1723671089100,-5000.0,0.00024165,2]
[334957337,1723671089110,-155.0,0.00024173,2]
[334957338,1723671089119,-3887.48013345,0.00024201,2]
[334957339,1723671089128,-155.0,0.00024201,2]
[334957340,1723671089138,-796.47547052,0.00024206,2]
[334957341,1723671089147,-5000.0,0.0002421,2]
[334957342,1723671089157,-639.83017646,0.00024211,2]
[334957343,1723671089184,-237.88,0.00012,2]
[334957344,1723671089194,-723.39203814,0.00024211,2]
[334957345,1723671089205,-3636.7777854,0.00024211,2]
[334957346,1723671089214,-150.0,0.00024225,2]
[334957347,1723671089223,-2500.0,0.0002424,2]
[334957348,1723671089233,-5000.0,0.00024249,2]
[334957349,1723671089243,-955.0,0.0002425,2]
[334957350,1723671089252,-150.0,0.00024255,2]
[334957351,1723671089262,-157.95458,0.00024255,2]
[334957352,1723671089271,-1000.0,0.00024257,2]
[334957353,1723671089280,-500.0,0.0002426,2]
[334957354,1723671089290,-5000.0,0.00024271,2]
[334957355,1723671089299,-2500.0,0.00024287,5]
[334957356,1723671089308,-155.0,0.00024298,2]
[334957357,1723671089317,-237.8151986,0.00024299,2]
[334957358,1723671089326,-237.79803881,0.00024299,2]
[334957359,1723671089335,-208885.97932372,0.000243,5]
[334957360,1723671089350,-1221882.08594233,0.000243,5]
[334957361,1723671089380,-255.19609183,0.00013001,2]
[334957362,1723671089389,-365.80180037,0.00013086,2]
[334957363,1723671089398,-127420.80774143,0.000243,5]
[334957364,1723671089587,-237.88,0.00012,2]
[334957365,1723671089597,-237.88,0.00012,2]
[334957366,1723671089607,-114.569,0.00012,2]
[334957367,1723671089630,-123.311,0.00012,2]
[334957368,1723671089639,-237.88,0.00012,2]
[334957369,1723671089649,-237.88,0.00012,2]
[334957370,1723671089659,-237.88,0.00012,2]
[334957371,1723671089668,-237.88,0.00012,2]
[334957372,1723671089678,-237.88,0.00012,2]
[334957373,1723671089687,-493.59808335,0.00013086,2]
[334957374,1723671089696,-155.0,0.00013391,2]
[334957375,1723671089706,-3490.26280413,0.0001442,2]
[334957376,1723671089715,-155.0,0.00014782,2]
[334957377,1723671089725,-500.0,0.00016437,2]
[334957378,1723671089735,-500.0,0.00016711,2]
[334957379,1723671089744,-275.34265555,0.00016985,2]
[334957380,1723671089753,-6759.50702969,0.000243,5]
[334957381,1723671089766,-4377.64503448,0.000243,5]
[334957382,1723671090678,-237.88,0.00012,2]
[334957383,1723671090689,-237.88,0.00012,2]
[334957384,1723671090699,-44.62152683,0.00012,2]
[334957385,1723671090712,-193.25847317,0.00012,2]
[334957386,1723671090721,-237.88,0.00012,2]
[334957387,1723671090731,-237.88,0.00012,2]
[334957388,1723671090740,-237.88,0.00012,2]
[334957389,1723671090750,-237.88,0.00012,2]
[334957390,1723671090758,-237.88,0.00012,2]
[334957391,1723671090769,-237.88,0.00012,2]
[334957392,1723671090779,-237.88,0.00012,2]
[334957393,1723671090788,-237.88,0.00012,2]
[334957394,1723671090798,-237.88,0.00012,2]
[334957395,1723671090807,-622.0,0.00013053,2]
[334957396,1723671090817,-481.534,0.00016053,2]
[334957397,1723671090826,-2946.46089069,0.000243,5]
[334957398,1723671090840,-11775.93565878,0.000243,5]
[334957399,1723671090853,-11529.93014519,0.000243,5]
[334957400,1723671090864,-2899.07416389,0.000243,5]
[334957401,1723671090884,-237.88,0.00012,2]
[334957402,1723671090894,-54.96,0.000243,5]
[334957403,1723671090906,-3144.75596649,0.000243,5]
[334957404,1723671090918,-379.8763603,0.000243,5]
[334957405,1723671090929,-42000.00002,0.000243,5]
[334957406,1723671090941,-8328.27221717,0.000243,5]
[334957407,1723671090952,-11651.21138074,0.000243,5]
[334957408,1723671090963,-2094.85587642,0.000243,5]
[334957409,1723671090975,-1470.7035555,0.000243,5]
[334957410,1723671090987,-2547.92756546,0.000243,5]
[334957411,1723671158951,1000.0,0.00025,61]
[334957412,1723671454795,286.081505,0.00027,120]
[334957441,1723672233347,-550.0,0.0001,2]
[334957442,1723672233357,-155.0,0.00010899,2]
[334957443,1723672233367,-208.37,0.00011,2]
[334957444,1723672233377,-600.0,0.00012,2]
[334957445,1723672233386,-1725.0,0.00012089,2]
[334957446,1723672233395,-270.48863776,0.00013001,2]
[334957447,1723672233405,-587.07431688,0.00013292,2]
[334957448,1723672233414,-155.0,0.00013292,2]
[334957449,1723672233424,-150.0,0.00013671,2]
[334957450,1723672233433,-155.0,0.00013698,2]
[334957451,1723672233442,-500.0,0.00013698,2]
[334957452,1723672233452,-500.0,0.00013698,2]
[334957453,1723672233462,-500.0,0.00013698,2]
[334957454,1723672233471,-500.0,0.00013698,2]
[334957455,1723672233480,-171.18,0.00013699,2]
[334957456,1723672233490,-500.0,0.00013972,2]
[334957457,1723672233499,-500.0,0.00013972,2]
[334957458,1723672233511,-500.0,0.00013972,2]
[334957459,1723672233521,-524.88,0.00013973,2]
[334957460,1723672233531,-608.89234347,0.00014,2]
[334957461,1723672233543,-41.10765653,0.00014,2]
[334957462,1723672233553,-297.48958849,0.00014225,2]
[334957463,1723672233563,-225.0,0.00014235,2]
[334957464,1723672233572,-500.0,0.00014246,2]
[334957465,1723672233582,-500.0,0.00014246,2]
[334957466,1723672233591,-500.0,0.00014246,2]
[334957467,1723672233600,-936.40275498,0.00014383,2]
[334957470,1723672233612,-397.82076205,0.00014383,2]
[334957472,1723672233626,-589.77648297,0.00014383,2]
[334957474,1723672233635,-764.0,0.00014383,2]
[334957476,1723672233644,-1074.0,0.00014383,2]
[334957478,1723672233655,-500.0,0.0001452,2]
[334957480,1723672233664,-500.0,0.0001452,2]
[334957482,1723672233674,-500.0,0.0001452,2]
[334957484,1723672233684,-155.0,0.00014681,2]
[334957486,1723672233693,-500.0,0.00014794,2]
[334957488,1723672233703,-500.0,0.00014794,2]
[334957489,1723672233712,-500.0,0.00014794,2]
[334957491,1723672233722,-998.5,0.00015,2]
[334957493,1723672233731,-150.0,0.00015,2]
[334957495,1723672233741,-500.0,0.00015068,2]
[334957497,1723672233751,-500.0,0.00015068,2]
[334957498,1723672233761,-495.28157033,0.00015068,2]
[334957499,1723672233772,-4.71842967,0.00015068,2]
[334957500,1723672233782,-150.96,0.00015102,2]
[334957501,1723672233790,-265.30961836,0.00015342,2]
[334957502,1723672233801,-234.69038164,0.00015342,2]
[334957503,1723672233811,-500.0,0.00015342,2]
[334957504,1723672233820,-500.0,0.00015342,2]
[334957505,1723672233829,-400.0,0.00015557,2]
[334957506,1723672233838,-500.0,0.00015616,2]
[334957507,1723672233847,-500.0,0.00015616,2]
[334957508,1723672233856,-500.0,0.00015616,2]
[334957509,1723672233865,-1000.0,0.00015652,2]
[334957510,1723672233875,-250.0,0.00015678,2]
[334957511,1723672233884,-500.0,0.0001589,2]
[334957512,1723672233893,-573.19257296,0.0001589,2]
[334957513,1723672233902,-500.0,0.0001589,2]
[334957514,1723672233913,-700.0,0.00016,2]
[334957515,1723672233922,-500.0,0.00016164,2]
[334957516,1723672234099,-500.0,0.00016164,2]
[334957517,1723672234108,-998.5,0.00016195,2]
[334957518,1723672234119,-500.0,0.00016438,2]
[334957519,1723672234128,-500.0,0.00016438,2]
[334957520,1723672234137,-500.0,0.00016554,2]
[334957521,1723672234146,-500.0,0.00016562,2]
[334957522,1723672234157,-500.0,0.00016571,2]
[334957523,1723672234166,-500.0,0.0001658,2]
[334957524,1723672234176,-500.0,0.00016589,2]
[334957525,1723672234186,-500.0,0.00016598,2]
[334957526,1723672234195,-500.0,0.00016606,2]
[334957527,1723672234204,-500.0,0.00016615,2]
[334957528,1723672234217,-305.26,0.000167,2]
[334957529,1723672234226,-500.0,0.00016712,2]
[334957530,1723672234236,-500.0,0.00016712,2]
[334957531,1723672234245,-181.36,0.00016712,2]
[334957532,1723672234255,-236.22894991,0.00016986,2]
[334957533,1723672234264,-500.0,0.00016986,2]
[334957534,1723672234275,-500.0,0.0001726,2]
[334957535,1723672234284,-150.96,0.00017366,2]
[334957536,1723672234295,-1924.0,0.00017383,2]
[334957537,1723672234304,-764.0,0.00017383,2]
[334957538,1723672234313,-768.0620421,0.0001739,2]
[334957539,1723672234324,-281.5379569,0.0001739,2]
[334957540,1723672234333,-486.21,0.000175,7]
[334957541,1723672234343,-400.0,0.00017501,2]
[334957542,1723672234353,-500.0,0.00017534,2]
[334957543,1723672234362,-1000.0,0.00017608,2]
[334957544,1723672234371,-500.0,0.00017808,2]
[334957545,1723672234383,-305.26,0.00017825,2]
[334957546,1723672234392,-563.76155911,0.00018,3]
[334957547,1723672234405,-284.22593584,0.00018,3]
[334957548,1723672234417,-2999.0,0.00018,3]
[334957549,1723672234429,-271.05628702,0.00018,3]
[334957550,1723672234440,-270.26587227,0.00018,3]
[334957551,1723672234452,-164.69034576,0.00018,3]
[334957552,1723672234461,-498.21303307,0.00018082,2]
[334957553,1723672234472,-305.26,0.0001895,2]
[334957554,1723672234482,-179.11645874,0.00019,2]
[334957555,1723672234492,-155.77438556,0.00019,2]
[334957556,1723672234501,-155.10495901,0.00019,2]
[334957557,1723672234511,-500.0,0.0001917,30]
[334957558,1723672234520,-500.0,0.0001917,30]
[334957559,1723672234530,-500.0,0.0001917,30]
[334957560,1723672234539,-500.0,0.0001917,30]
[334957561,1723672234548,-500.0,0.0001917,30]
[334957562,1723672234558,-83.45394208,0.0001917,30]
[334957563,1723672234573,-416.54605792,0.0001917,30]
[334957564,1723672234583,-500.0,0.0001917,30]
[334957565,1723672234591,-412.73796981,0.0001917,30]
[334957566,1723672234603,-87.26203019,0.0001917,30]
[334957567,1723672234612,-500.0,0.0001917,30]
[334957568,1723672234621,-500.0,0.0001917,30]
[334957569,1723672234630,-500.0,0.0001917,30]
[334957570,1723672234640,-500.0,0.0001917,30]
[334957571,1723672234649,-369.43796981,0.0001917,30]
[334957573,1723672238442,-130.56203019,0.0001917,30]
[334957575,1723672238452,-500.0,0.0001917,30]
[334957577,1723672238462,-500.0,0.0001917,30]
[334957578,1723672238472,-500.0,0.0001917,30]
[334957579,1723672238481,-500.0,0.0001917,30]
[334957580,1723672238491,-500.0,0.0001917,30]
[334957581,1723672238502,-500.0,0.0001917,30]
[334957582,1723672238511,-500.0,0.0001917,30]
[334957583,1723672238521,-500.0,0.0001917,30]
[334957584,1723672238531,-500.0,0.0001917,30]
[334957585,1723672238540,-500.0,0.0001917,30]
[334957586,1723672238550,-500.0,0.0001917,30]
[334957587,1723672238559,-500.0,0.0001917,30]
[334957588,1723672238568,-500.0,0.0001917,30]
[334957589,1723672238578,-500.0,0.0001917,30]
[334957590,1723672238587,-500.0,0.0001917,30]
[334957591,1723672238597,-500.0,0.0001917,30]
[334957592,1723672238606,-500.0,0.0001917,30]
[334957593,1723672238615,-500.0,0.0001917,30]
[334957594,1723672238625,-500.0,0.0001917,30]
[334957595,1723672238634,-500.0,0.0001917,30]
[334957596,1723672238645,-500.0,0.0001917,30]
[334957597,1723672238655,-500.0,0.0001917,30]
[334957598,1723672238665,-500.0,0.0001917,30]
[334957599,1723672238675,-500.0,0.0001917,30]
[334957600,1723672238684,-158.9615971,0.0001917,30]
[334957601,1723672238693,-500.0,0.0001917,30]
[334957602,1723672238702,-500.0,0.0001917,30]
[334957603,1723672238712,-500.0,0.0001917,30]
[334957604,1723672238721,-500.0,0.0001917,30]
[334957605,1723672238731,-500.0,0.0001917,30]
[334957606,1723672238740,-500.0,0.0001917,30]
[334957607,1723672238748,-500.0,0.0001917,30]
[334957608,1723672238758,-500.0,0.0001917,30]
[334957609,1723672238767,-500.0,0.0001917,30]
[334957610,1723672238776,-500.0,0.0001917,30]
[334957611,1723672238785,-500.0,0.0001917,30]
[334957612,1723672238794,-500.0,0.0001917,30]
[334957613,1723672238803,-500.0,0.0001917,30]
[334957614,1723672238813,-500.0,0.0001917,30]
[334957615,1723672238822,-500.0,0.0001917,30]
[334957616,1723672238831,-500.0,0.0001917,30]
[334957617,1723672238840,-500.0,0.0001917,30]
[334957618,1723672238850,-500.0,0.0001917,30]
[334957619,1723672238859,-500.0,0.0001917,30]
[334957620,1723672238868,-500.0,0.0001917,30]
[334957621,1723672238877,-500.0,0.0001917,30]
[334957622,1723672238887,-500.0,0.0001917,30]
[334957623,1723672238896,-621.1133116,0.0001917,30]
[334957624,1723672238907,-676.50109187,0.00019299,2]
[334957626,1723672238924,-400.0,0.00019446,2]
[334957627,1723672238933,-1000.0,0.00019565,2]
[334957628,1723672238942,-2533.93722692,0.00019614,2]
[334957629,1723672238951,-2080.81739461,0.00019614,2]
[334957630,1723672238967,-414.74931863,0.00019614,2]
[334957631,1723672238978,-38.37051368,0.00019614,2]
[334957632,1723672238988,-150.96,0.0001963,2]
[334957633,1723672238997,-174.64011557,0.00019879,2]
[334957635,1723672239008,-331.35988443,0.00019879,2]
[334957638,1723672239018,-623.91069435,0.000199,2]
[334957642,1723672239029,-2403.61890565,0.000199,2]
[334957644,1723672239038,-259.9487,0.000199,2]
[334957648,1723672239048,-2977.5183,0.000199,2]
[334957649,1723672239057,-647.09591446,0.00019999,2]
[334957650,1723672239066,-367.30388687,0.0002,2]
[334957651,1723672239075,-150.0,0.0002,2]
[334957652,1723672239085,-150.0,0.0002,5]
[334957653,1723672239096,-320.0,0.0002,5]
[334957654,1723672239106,-1300.0,0.00020045,2]
[334957655,1723672239115,-285.0,0.0002005,3]
[334957656,1723672239124,-500.0,0.00020069,2]
[334957657,1723672239134,-587.095187,0.00020075,2]
[334957658,1723672239143,-500.0,0.00020084,2]
[334957659,1723672239152,-1047.41910602,0.00020094,2]
[334957665,1723672240487,-252.58089398,0.00020094,2]
[334957666,1723672240498,-1700.0,0.00020117,2]
[334957667,1723672240507,-500.0,0.0002016,2]
[334957668,1723672240517,-500.0,0.00020168,2]
[334957669,1723672240526,-500.0,0.00020271,2]
[334957670,1723672240536,-1700.0,0.00020281,2]
[334957671,1723672240546,-500.0,0.00020296,2]
[334957672,1723672240555,-500.0,0.00020323,2]
[334957673,1723672240565,-152.24,0.00020343,2]
[334957674,1723672240574,-1300.0,0.00020353,2]
[334957675,1723672240584,-764.0,0.00020383,2]
[334957676,1723672240593,-524.88,0.00020447,2]
[334957677,1723672240602,-1700.0,0.00020489,2]
[334957678,1723672240612,-1700.0,0.00020587,2]
[334957679,1723672240621,-500.0,0.00020752,2]
[334957680,1723672240630,-1300.0,0.00020776,2]
[334957681,1723672240639,-540.989637,0.00020789,2]
[334957682,1723672240649,-7500.0,0.00020812,2]
[334957683,1723672240659,-262.5936,0.00020812,2]
[334957684,1723672240669,-500.0,0.00020828,2]
[334957685,1723672240678,-1300.0,0.00020843,2]
[334957686,1723672240687,-500.0,0.00020902,2]
[334957687,1723672240696,-500.0,0.00020902,2]
[334957688,1723672240705,-500.0,0.00020902,2]
[334957689,1723672240715,-500.0,0.00020902,2]
[334957690,1723672240724,-500.0,0.00020902,2]
[334957691,1723672240733,-500.0,0.00020902,2]
[334957692,1723672240743,-500.0,0.00020902,2]
[334957693,1723672240753,-500.0,0.00020902,2]
[334957694,1723672240762,-500.0,0.00020902,2]
[334957695,1723672240772,-500.0,0.00020902,2]
[334957696,1723672240782,-500.0,0.00020902,2]
[334957697,1723672240792,-500.0,0.00020902,2]
[334957698,1723672240802,-500.0,0.00020902,2]
[334957700,1723672240811,-500.0,0.00020902,2]
[334957701,1723672240822,-500.0,0.00020902,2]
[334957703,1723672240832,-500.0,0.00020902,2]
[334957705,1723672240842,-500.0,0.00020902,2]
[334957707,1723672240852,-500.0,0.00020902,2]
[334957709,1723672240861,-500.0,0.00020902,2]
[334957711,1723672240870,-500.0,0.00020902,2]
[334957713,1723672240879,-500.0,0.00020902,2]
[334957715,1723672240888,-500.0,0.00020902,2]
[334957717,1723672240898,-500.0,0.00020902,2]
[334957719,1723672240908,-500.0,0.00020902,2]
[334957721,1723672240917,-500.0,0.00020902,2]
[334957723,1723672240927,-500.0,0.00020902,2]
[334957725,1723672240938,-500.0,0.00020902,2]
[334957727,1723672240947,-500.0,0.00020902,2]
[334957729,1723672240958,-500.0,0.00020902,2]
[334957731,1723672240967,-500.0,0.00020902,2]
[334957733,1723672240977,-500.0,0.00020902,2]
[334957736,1723672240987,-500.0,0.00020902,2]
[334957737,1723672240996,-500.0,0.00020902,2]